Cogmind - Beta 17 @@@ ROGUE MODE // 2026.07.06 @ 22:28:30 Player: VFX Result: Destroyed by D-53 Grenadier with Mini Grenade Launcher Performance ------------- Evolutions (0) 0 Regions Visited (2) 400 Robots Destroyed (14) 70 Value Destroyed (275) 275 Prototype IDs (0) 0 Alien Tech Used (0) 0 Bonus (0) 0 TOTAL SCORE: 745 Bonus ------- None Cogmind --------- Core Integrity 0/250 Matter 253/300 Energy 242/250 System Corruption 0% Temperature Cool (10) Movement Walking (120) Location -10/Mines Parts ------- > --- POWER (1) -------- Ion Engine > --- PROPULSION (2) --- Aluminum Leg Aluminum Leg > --- UTILITY (2) ------ Small Storage Unit Seismic Detector > --- WEAPON (2) ------- EM Pulse Gun Light Assault Rifle > --- INVENTORY (8) ---- Ion Engine Light Ion Engine Aluminum Leg Aluminum Leg Medium Laser Light Assault Rifle Grenade Launcher Peak State ------------ > --- POWER ------------ Ion Engine > --- PROPULSION ------- Aluminum Leg Aluminum Leg > --- UTILITY ---------- Small Storage Unit Seismic Detector > --- WEAPON ----------- EM Pulse Gun Light Assault Rifle > --- INVENTORY -------- Ion Engine Light Ion Engine Aluminum Leg Aluminum Leg Medium Laser Light Assault Rifle Grenade Launcher [Rating: 7] Favorites ----------- Power Ion Engine Engine Ion Engine Propulsion Aluminum Leg Leg Aluminum Leg Flight Unit Flight Unit Utility Small Storage Unit Device Seismic Detector Storage Small Storage Unit Weapon Light Assault Rifle Energy Gun EM Pulse Gun Ballistic Gun Light Assault Rifle Launcher Grenade Launcher Build | -11 -10 -10 ------- Run | Yrd Mat Min Slots Evolved . | . . . Power . | . . . Propulsion . | . . . Utility . | . . . Weapon . | . . . Parts Attached 16 | 6 2 8 Power 1 | 1 . . Engine 1 | 1 . . Core . | . . . Reactor . | . . . Propulsion 7 | 2 . 5 Treads . | . . . Leg 4 | 2 . 2 Wheel . | . . . Hover . | . . . Flight 3 | . . 3 Utility 2 | 1 . 1 Device 1 | . . 1 Storage 1 | 1 . . Processor . | . . . Hackware . | . . . Protection . | . . . Artifact . | . . . Weapon 6 | 2 2 2 Energy Gun 3 | 2 . 1 Energy Cannon . | . . . Ballistic Gun 2 | . 1 1 Ballistic Cannon . | . . . Launcher 1 | . 1 . Special Weapon . | . . . Impact Weapon . | . . . Slashing Weapon . | . . . Piercing Weapon . | . . . Special Melee Weapon . | . . . Unidentified Prototypes . | . . . Parts Lost 2 | . . 2 Power . | . . . Propulsion 1 | . . 1 Utility . | . . . Weapon 1 | . . 1 Highest Loss Streak 2 | . . 2 To Critical Strikes . | . . . Average Backups 5 | 2 4 7 Power 1 | 1 1 1 Propulsion 1 | . . 2 Utility . | . . . Weapon 3 | 1 2 3 Tool/Special . | . . . Unused Backups 5 | . . 5 Power 2 | . . 2 Propulsion 2 | . . 2 Utility . | . . . Weapon 1 | . . 1 Tool/Special . | . . . Average Slot Usage (%) 83 | . 85 82 Engine 14 | . 14 14 Leg 24 | . 28 22 Flight 2 | . . 4 Device 4 | . . 7 Storage 14 | . 14 14 Energy Gun 10 | . 23 4 Ballistic Gun 9 | . 2 14 Peak Build Rating 7 | 6 6 7 Average Rating 5 | 3 6 5 On Entrance 4 | . 6 6 Avg Prop Armor Cover (%) 11 | . . 11 Naked Turns . | . . . Heaviest Build 15 | 14 15 14 Greatest Support 20 | 20 20 20 Greatest Overweight (x) 4 | . . 4 Average Overweight (x) . | . . . Largest Inventory Capacity 8 | 8 8 8 Average Capacity 7 | 6 8 8 Most Carried 8 | 5 7 8 Average Carried 5 | 2 4 7 Final Capacity 8 | 8 8 8 Final Carried 7 | 2 7 7 Class Distribution -------------------- 60% | Mutant 39% | Scavenger-Mutant Dominant Class ---------------- Mutant | -10/Materials Scavenger-Mutant | -10/Mines Resources | -11 -10 -10 ----------- Run | Yrd Mat Min Matter Collected 396 | 183 107 106 Remotely . | . . . Salvage Created 342 | . 156 186 Parts 24 | . 9 15 Haulers Intercepted . | . . . Recyclers Shooed 2 | . 2 . Parts Field Recycled . | . . . Retrieved Matter . | . . . Parts Self-Destructed . | . . . Prevented . | . . . Parts Restored . | . . . Kills | -11 -10 -10 ------- Run | Yrd Mat Min Combat Hostiles Destroyed 12 | . 5 7 Guns 10 | . 3 7 AOE 2 | . 2 . Classes Destroyed 4 | . 3 1 Tunneler 1 | . . 1 Operator 1 | . 1 . Swarmer 8 | . 3 5 Grunt 4 | . 2 2 Best Kill Streak 4 | . 4 3 Combat Bots Only 3 | . 3 3 Max Kills in Single Turn 2 | . 2 1 Gunslinging . | . . . Exploded 2 | . 2 . Melee . | . . . Uniques/NPCs Destroyed . | . . . Combat | -11 -10 -10 -------- Run | Yrd Mat Min Hostile Shots Fired 83 | . 16 67 Missed 27 | . 6 21 Hits 56 | . 10 46 Projectile 56 | . 10 46 AOE 1 | . . 1 Critical Strikes 1 | . . 1 Damage Taken 664 | . 106 558 Core 255 | . 53 202 Absorbed by Shields . | . . . Core Remaining (%) 100 | 100 . . Volleys Fired 47 | . 13 34 Largest 2 | . 2 2 Hottest 90 | . 90 70 Shots Fired 80 | . 22 58 Gun 79 | . 21 58 Cannon . | . . . Launcher 1 | . 1 . Special . | . . . Kinetic 33 | . . 33 Thermal 25 | . 9 16 Explosive 1 | . 1 . Electromagnetic 21 | . 12 9 Robot Hit Streak 8 | . 8 5 Robot Miss Streak 5 | . 2 5 Penetration Max . | . . . Secondary Targets 4 | . 1 3 Max Gunslinging Chain 1 | . 1 1 Shots Hit Robots 43 | . 11 32 Core Hits 23 | . 11 12 Critical Kills . | . . . Critical Parts Destroyed . | . . . Critical Strikes 2 | . . 2 Burn 1 | . . 1 Corrupt 1 | . . 1 Melee Attacks . | . . . Impact . | . . . Slashing . | . . . Piercing . | . . . Sneak Attacks . | . . . Combat Hostiles . | . . . Follow-up Attacks . | . . . Damage Inflicted 549 | . 225 324 Guns 470 | . 146 324 Cannons . | . . . Explosions 79 | . 79 . Melee . | . . . Ramming . | . . . Kinetic 143 | . . 143 Thermal 173 | . 38 135 Explosive 79 | . 79 . Electromagnetic 154 | . 108 46 Impact . | . . . Slashing . | . . . Piercing . | . . . Highest Corruption . | . . . Average Corruption . | . . . Corruption Purged . | . . . Corruption Blocked . | . . . Overload Shots . | . . . Overflow Damage . | . . . Projectiles . | . . . Explosions . | . . . Melee . | . . . Knockbacks . | . . . Impact . | . . . Kinetic . | . . . Secondary . | . . . Self-Inflicted Damage . | . . . Shots . | . . . Rammed . | . . . Targets Rammed . | . . . Kicked . | . . . Crushed . | . . . Highest Temperature 357 | . 174 357 Average Temperature 124 | . 76 149 Received Heat Transfer 303 | . 42 261 Effects 1 | . . 1 Energy Bleed 1 | . . 1 Siege Activations . | . . . Martial Activations . | . . . Shielding Activations . | . . . Robots Disrupted . | . . . Combat Hostiles . | . . . Robots Corrupted . | . . . Combat Hostiles . | . . . Parts Fried . | . . . Impact Corruptions . | . . . Robots Melted . | . . . Combat Hostiles . | . . . Parts Melted . | . . . Heat Transferred 592 | . 111 481 Parts Sabotaged . | . . . Parts Stolen . | . . . Parts Stripped . | . . . Power Chain Reactions . | . . . Alert | -11 -10 -10 ------- Run | Yrd Mat Min Maximum Alert Level . | . . . Low Security (%) 100 | 100 100 100 Level 1 . | . . . Level 2 . | . . . Level 3 . | . . . Level 4 . | . . . Level 5 . | . . . High Security . | . . . Max Security . | . . . Peak Influence 119 | . 119 88 Initial 38 | . . 38 Average 32 | . 47 29 Influence Increases 338 | . 158 180 Destroy 0b10 Robot/C 240 | . 100 140 Destroy 0b10 Robot/NC 10 | . 5 5 Destroy Leader 50 | . 20 30 Successful Hack 14 | . 9 5 Disable Machine 15 | . 15 . Destroy Structure 9 | . 9 . Influence Decreases 278 | . 59 219 Entered New Map 61 | . . 61 Time Decay 197 | . 59 138 Lost Part 20 | . . 20 Squads Dispatched 1 | . 1 . Investigation . | . . . Extermination . | . . . Reinforcement 1 | . 1 . Assault . | . . . Garrison . | . . . Intercept . | . . . Searches Triggered . | . . . Construction Impeded . | . . . Haulers Reinforced . | . . . Active Scanning Responses . | . . . Cargo Convoy Interrupts . | . . . Stealth | -11 -10 -10 --------- Run | Yrd Mat Min Distress Signals 1 | . 1 . Communications Jammed . | . . . Distress Signals . | . . . Times Spotted 18 | . 7 11 Peak Tracking Total 5 | . 4 5 Tactical Retreats . | . . . Traps | -11 -10 -10 ------- Run | Yrd Mat Min Traps Triggered . | . . . Indirectly . | . . . Trap Hack Attempts . | . . . Triggered . | . . . Disarmed . | . . . Reprogrammed . | . . . Reused . | . . . Traps Extracted . | . . . Installed . | . . . Triggered . | . . . Machines | -11 -10 -10 ---------- Run | Yrd Mat Min Machines Disabled 1 | . 1 . Max in Single Turn 1 | . 1 . Machines Repaired . | . . . Machines Dismantled . | . . . Machines Sabotaged . | . . . Overloaded Fab Kills . | . . . Hacking | -11 -10 -10 --------- Run | Yrd Mat Min Machines Accessed 4 | . 3 1 Terminals 4 | . 3 1 Fabricators . | . . . Repair Stations . | . . . Recycling Units . | . . . Scanalyzers . | . . . Garrison Access . | . . . Total Hacks 8 | . 5 3 Successful 6 | . 4 2 Failed 2 | . 1 1 Catastrophic . | . . . Database Lockouts . | . . . Manual . | . . . Terminals 8 | . 5 3 Fabricators . | . . . Repair Stations . | . . . Recycling Units . | . . . Scanalyzers . | . . . Garrison Access . | . . . Terminal Hacks 6 | . 4 2 Record 3 | . 2 1 Dispatch Records 1 | . 1 . Transport Status 1 | . 1 . Zone Layout 1 | . . 1 Fabricator Hacks . | . . . Repair Station Hacks . | . . . Recycling Unit Hacks . | . . . Scanalyzer . | . . . Garrison Access Hacks . | . . . Unauthorized Hacks . | . . . Terminals . | . . . Fabricators . | . . . Repair Stations . | . . . Recycling Units . | . . . Scanalyzers . | . . . Garrison Access . | . . . Data Cores Recovered 1 | . 1 . Used . | . . . Hacking Detections 1 | . 1 . Full Trace Events . | . . . Feedback Events . | . . . Feedback Blocked . | . . . Robot Schematics Acquired . | . . . Robots Built . | . . . Authchips . | . . . Time . | . . . Total Robot Build Rating . | . . . Part Schematics Acquired . | . . . Parts Built . | . . . Authchips . | . . . Time . | . . . Total Part Build Rating . | . . . Part Studies Acquired . | . . . Parts Repaired . | . . . Time . | . . . Parts Recycled . | . . . Recycled Matter . | . . . Retrieved Matter . | . . . Retrieved Components . | . . . Parts Scanalyzed . | . . . Part Schematics Acquired . | . . . Parts Damaged . | . . . Bothacking | -11 -10 -10 ------------ Run | Yrd Mat Min Used RIF Installer . | . . . Robots Hacked . | . . . Non-combat . | . . . Combat . | . . . Robot Hacks Applied . | . . . Relay Couplers Released . | . . . Fabnet Peak Effective % . | . . . Robots Rewired . | . . . Allies Hacked . | . . . Hacks Repelled . | . . . Allies | -11 -10 -10 -------- Run | Yrd Mat Min Total Allies . | . . . Largest Group . | . . . Highest-Rated Group . | . . . Highest-Rated Ally . | . . . Total Orders . | . . . Ally Attacks . | . . . Total Damage . | . . . Kills . | . . . Allies Corrupted . | . . . Allies Melted . | . . . Intel | -11 -10 -10 ------- Run | Yrd Mat Min Active Infowar (turns) 213 | . . 213 Seismic 213 | . . 213 Robot Analysis Total . | . . . Derelict Logs Recovered . | . . . Drone Launches . | . . . Drone Recoveries . | . . . Exploration | -11 -10 -10 ------------- Run | Yrd Mat Min Turns Passed 632 | 59 190 383 Spaces Moved 372 | 40 121 211 Core 15 | 13 . 2 Treads . | . . . Legs 317 | 27 121 169 Wheels . | . . . Hover . | . . . Flight 40 | . . 40 Fastest Speed 50 | 50 120 117 Average Speed 119 | 97 120 123 Slowest Speed 290 | 120 120 290 Overloaded Moves . | . . . Propulsion Burnouts . | . . . Robots Hopped . | . . . Potential Cave-ins . | . . . Cave-ins Triggered . | . . . Exploration Rate (%) 15 | 3 25 18 Regions Visited 2 Branch Regions 1 Pre-discovered Areas . | . . . Known Exits Taken . | . . . Unknown Exits Taken 2 | 1 1 . Scrap Searched . | . . . Spaces Dug . | . . . Terrain Destroyed 9 | . 9 . Melee . | . . . Projectile . | . . . AOE 9 | . 9 . Terrain Rammed . | . . . Walls Destroyed . | . . . Machines Disabled . | . . . Actions | -11 -10 -10 --------- Run | Yrd Mat Min Total 489 | 58 143 288 Wait 21 | 8 3 10 Move 370 | 39 120 211 Hop . | . . . Pick Up 17 | 5 5 7 Fast Attach 7 | 3 . 4 Attach 11 | 3 . 8 Detach 4 | . . 4 Swap 3 | . 2 1 Drop 9 | . . 9 Fire 47 | . 13 34 Melee . | . . . Ram . | . . . Kick . | . . . Crush . | . . . Escape Stasis . | . . . Rewire . | . . . Trap . | . . . Miscellaneous . | . . . Route ------- -11/Scrapyard -10/Materials -10/Mines History --------- Turn | Location | Event 12 | -11/Scrapyard | Discovered new exit (range 15) 60 | -11/Scrapyard | Entered Materials 214 | -10/Materials | Discovered new exit (range 15) 250 | -10/Materials | Entered Mines 309 | -10/Mines | Build established: Mutant 368 | -10/Mines | Core integrity fell below 50% 383 | -10/Mines | Core integrity fell below 20% 548 | -10/Mines | Assembled infested the area 633 | -10/Mines | Destroyed by D-53 Grenadier with Mini Grenade Launcher Last Messages --------------- information is monitored and relayed by the terminal's Operator. Types of information accessible directly from each terminal are limited in order to mitigate the negative impacts of unauthorized access. Access is restricted by shielding the system behind multi-layered security, the first layer of which requires a dynamic key to clear without triggering defense mechanisms. >>Layout(Zone) Retrieving Zone 6G layout... Downloaded map data. ALERT: Infestation in the mines, dispatching Demolisher response squad. C-45 Heavy ARC bursts open, deploying its payload. D-53 Grenadier unfolds itself. S-10 Pest destroyed. Switching to secondary target: S-10 Pest. S-10 Pest destroyed. Map ----- +----------------------------------------------------+ | ????????????????????????????????????? | | ????????????????######??????????????? | | ???????????????## ####???????????? | | ??????# ####### ##??????????? | | ??????# #??????????? | | ??????# ## ##??????????? | | ?????????##### ### #?##???????????? | | ?????????????## #??# #??????????????? | | ??????????????##???# #??????????????? | | ???????????????????# #??????????????? | | ???########????????# #??????????????? | | ??## ########## #??????????????? | | ??# #??????????????? | | ??# ###########??????????????? | | ??# ##????????????????????????? | | ??## ####?????????????????????????? | | ???## #????????????????????????????? | | ????# #????????????????????????????? | | ????# #????????????????????????????? | | ????# #???????????????# ????? | | ????# #??????????????## ????? | | ????# #?????????????## #????? | | ????# #????????????## ##????? | | ????# #????????????# ##?????? | | ????# ############## ##?????? | | ????# ur @ ==%*%d%[ ##????? | | ?#### ############### #????? | | ?# #?????????????## #???? | | ?# #??????????????### ????? | | ?# #????????????????## #????? | | ?# #########?????????## ##????? | | ?# #??????????## ##?????? | | ?# #???????????####??????? | | ?# ###### ####??????????????????? | | ?######???## ##T#######????????????? | | ??????????# #????????????? | | ??????????# =""" #????????????? | | ??????????# ="" = #????????????? | | ??????????# "" #????????????? | | ??????????# !%% = #????????????? | | ??????????# * #????????????? | | ??????????# [*= #????????????? | | ??????????##############????????????? | | ????????????????????????????????????? | | ????????????????????????????????????? | | | | | | | | | | | +----------------------------------------------------+ Best States ------------- Heat Dissipation 25 Energy Generation 10 Energy Capacity 250 Matter Stores 300 Matter Capacity 300 Sight Range 16 Terrain Scan Density 10 Evasion (%) 55 Item Schematics ----------------- None Robot Schematics ------------------ None Fabricated ------------ Nothing Repaired ---------- Nothing Studied --------- None Alien Tech Used ----------------- None Achievements -------------- None Challenges ------------ None Game ------ Seed ExpertBlinkWartreads Manual? 0 Play Time 00:13:56 Cumulative 6.2 hours Start 2026.07.06 @ 22:15:29 End 2026.07.06 @ 22:28:30 Sessions 1 Manual Loads 0 Difficulty Rogue Special Mode None Game No. 8 Rogue 8 Adventurer 0 Explorer 0 Win Type - Total 0 Types 0/0/0/0/0/0/0/0/0/0 Lore% 6 Gallery% 8 Achievement% 7 Wizard Run 0 Options --------- Layout 2 ASCII 0 Keyboard 0 Movement Mouse Keybinds 0 Fullscreen 1 Font 24/Proggy Map View 50x44 Zoom Use 0% Tactical HUD 0 Map Filters NONE Filters NONE Steam 1 RUN: 9c6ece9e-22d0-4717-b26a-c86570376a48